[Event "WYCC 2018 O18"]
[Site "Halkidiki"]
[Date "2018.10.20"]
[Round "1"]
[White "Fawzy, Adham"]
[Black "Dallemagne, Maximilien"]
[Result "1-0"]
[ECO "C15"]
[WhiteElo "2439"]
[BlackElo "2094"]
[Annotator "ChessBase"]
[PlyCount "41"]
[EventDate "2018.10.20"]
[EventType "swiss"]
[EventCountry "GRE"]
[SourceTitle "playchess.com"]
[Source "ChessBase"]
[SourceQuality "1"]
[TimeControl "40/5400+30:1800+30"]

1. e4 {[%emt 0:00:00]} e6 {[%emt 0:00:00]} 2. d4 {[%emt 0:00:00]} d5 {[%emt 0:00:00]} 3. Nc3 {[%emt 0:00:00]} Bb4 {[%emt 0:00:00]} 4. exd5 {[%emt 0:01:16]} exd5 {[%emt 0:00:08]} 5. Bd3 {[%emt 0:00:03]} Nf6 {[%emt 0:01:39]} 6. Nge2 {[%emt 0:01:13]} O-O {[%emt 0:00:48]} 7. Bg5 {[%emt 0:00:35]} c6 {[%emt 0:05:24]} 8. Qd2 {[%emt 0:00:41]} b6 {[%emt 0:04:20]} 9. O-O-O {[%emt 0:06:17]} Ba6 {[%emt 0:07:51]} 10. Ng3 {[%emt 0:09:01]} Bxd3 {[%emt 0:08:24]} 11. Qxd3 {[%emt 0:00:02]} h6 {[%emt 0:09:43]} 12. Bf4 {[%emt 0:05:37]} Re8 {[%emt 0:11:54]} 13. Nf5 {[%emt 0:06:06]} Bxc3 {[%emt 0:10:02]} 14. Qxc3 {[%emt 0:00:52]} Ne4 {[%emt 0:02:55]} 15. Qf3 {[%emt 0:08:16]} Qf6 {[%emt 0:08:12]} 16. Be3 {[%emt 0:02:42]} Ng5 {[%emt 0:07:31]} 17. Qg4 {[%emt 0:05:03]} Re4 {[%emt 0:04:31]} 18. Nxh6+ {[%emt 0:00:40]} gxh6 {[%emt 0:01:01]} 19. Qc8+ {[%emt 0:00:02]} Kh7 {[%emt 0:01:37]} 20. Qb7 {[%emt 0:00:23]} Qe7 {[%emt 0:09:32]} 21. Qxa8 1-0

[Event "WYCC 2018 O18"]
[Site "Halkidiki"]
[Date "2018.10.20"]
[Round "1"]
[White "Ioannidis, Evgenios"]
[Black "Olimjonov, Sarvarbek"]
[Result "1-0"]
[ECO "E10"]
[WhiteElo "2407"]
[BlackElo "2074"]
[Annotator "ChessBase"]
[PlyCount "79"]
[EventDate "2018.10.20"]
[EventType "swiss"]
[EventCountry "GRE"]
[SourceTitle "playchess.com"]
[Source "ChessBase"]
[SourceQuality "1"]
[TimeControl "40/5400+30:1800+30"]

1. Nf3 {[%emt 0:00:00]} Nf6 {[%emt 0:00:05]} 2. d4 {[%emt 0:00:59]} c5 {[%emt 0:00:15]} 3. d5 {[%emt 0:00:29]} b5 {[%emt 0:00:19]} 4. c4 {[%emt 0:02:31]} e6 {[%emt 0:00:16]} 5. Bg5 {[%emt 0:06:56]} exd5 {[%emt 0:18:11]} 6. cxd5 {[%emt 0:02:15]} Qa5+ {[%emt 0:02:05]} 7. Nc3 {[%emt 0:03:19]} Ne4 {[%emt 0:03:39]} 8. Qd3 {[%emt 0:05:49]} Nxg5 {[%emt 0:14:49]} 9. Nxg5 {[%emt 0:00:08]} Be7 {[%emt 0:01:59]} 10. Qf5 {[%emt 0:08:39]} Bxg5 {[%emt 0:16:52]} 11. Qe5+ {[%emt 0:00:54]} Be7 {[%emt 0:02:07]} 12. d6 {[%emt 0:02:05]} O-O {[%emt 0:10:13]} 13. dxe7 {[%emt 0:00:27]} Re8 {[%emt 0:00:07]} 14. Qxc5 {[%emt 0:00:34]} Nc6 {[%emt 0:00:53]} 15. Qxb5 {[%emt 0:06:10]} Qc7 {[%emt 0:09:52]} 16. Qc5 {[%emt 0:20:19]} Qb8 {[%emt 0:02:09]} 17. O-O-O {[%emt 0:00:43]} Nxe7 {[%emt 0:03:41]} 18. e3 {[%emt 0:00:58]} a6 {[%emt 0:02:25]} 19. Bc4 {[%emt 0:02:22]} Ra7 {[%emt 0:01:17]} 20. Qh5 {[%emt 0:12:48]} d5 {[%emt 0:00:28]} 21. Nxd5 {[%emt 0:02:07]} Nxd5 {[%emt 0:00:21]} 22. Bxd5 {[%emt 0:00:16]} Qb4 {[%emt 0:00:15]} 23. Rd4 {[%emt 0:00:59]} Rc7+ {[%emt 0:01:58]} 24. Kb1 {[%emt 0:00:07]} Qb6 {[%emt 0:00:38]} 25. Rhd1 {[%emt 0:01:58]} g6 {[%emt 0:00:52]} 26. Qg5 {[%emt 0:01:57]} Bf5+ {[%emt 0:04:11]} 27. e4 {[%emt 0:00:33]} Qc5 {[%emt 0:02:52]} 28. exf5 {[%emt 0:05:28]} Qc2+ {[%emt 0:00:02]} 29. Ka1 {[%emt 0:00:04]} Re2 {[%emt 0:00:58]} 30. Bxf7+ {[%emt 0:00:09]} Kg7 {[%emt 0:00:32]} 31. f6+ {[%emt 0:05:59]} Kxf7 {[%emt 0:00:06]} 32. Qd5+ {[%emt 0:00:04]} Kf8 {[%emt 0:01:00]} 33. Qd8+ {[%emt 0:01:09]} Re8 {[%emt 0:00:26]} 34. Qd6+ {[%emt 0:00:33]} Kf7 {[%emt 0:00:04]} 35. a3 {[%emt 0:00:22]} Rb8 {[%emt 0:00:48]} 36. R4d2 {[%emt 0:01:50]} Qc4 {[%emt 0:00:34]} 37. Re1 {[%emt 0:00:18]} Rbb7 {[%emt 0:00:28]} 38. Rde2 {[%emt 0:01:11]} Qc5 {[%emt 0:00:40]} 39. Re7+ {[%emt 0:00:11]} Kf8 {[%emt 0:00:11]} 40. Qd8# {[%emt 0:00:00]} 1-0

[Event "WYCC 2018 O18"]
[Site "Halkidiki"]
[Date "2018.10.20"]
[Round "1"]
[White "Haug, Johannes"]
[Black "Brewer, Callum D"]
[Result "1-0"]
[ECO "B11"]
[WhiteElo "2391"]
[BlackElo "2056"]
[Annotator "NA"]
[PlyCount "109"]
[EventDate "2018.10.20"]
[EventType "swiss"]
[EventCountry "GRE"]
[SourceTitle "playchess.com"]
[Source "ChessBase"]
[SourceQuality "1"]
[TimeControl "40/5400+30:1800+30"]

1. e4 {[%emt 0:00:00]} c6 {[%emt 0:00:00]} 2. Nc3 {[%emt 0:01:29]} d5 {[%emt 0:00:00]} 3. Nf3 {[%emt 0:00:06]} Bg4 {[%emt 0:00:00]} 4. h3 {[%emt 0:00:15]} Bxf3 {[%emt 0:00:00]} 5. Qxf3 {[%emt 0:00:04]} e6 {[%emt 0:00:06]} 6. d4 {[%emt 0:00:52]} dxe4 {[%emt 0:00:23]} 7. Qxe4 {[%emt 0:00:23] B11: Caro-Kann: Two Knights Variation} Nf6 {[%emt 0:02:14]} 8. Qd3 {[%emt 0:00:23]} Bd6 {[%emt 0:05:11]} (8... Na6 9. a3 Qb6 10. Be2 Be7 11. O-O O-O 12. Rd1 Rfd8 13. b4 Nc7 14. Na4 Qb5 {½-½ (39) Vachier Lagrave,M (2794)-Ivanchuk,V (2732) Germany 2018}) 9. g3 {[%emt 0:00:32]} Nbd7 {[%emt 0:04:39]} 10. Bg2 {[%emt 0:00:21]} h6 $146 {[%emt 0:03:26]} ({Predecessor:} 10... O-O 11. Be3 Qc7 12. O-O-O Nd5 13. Bd2 Bb4 14. Ne4 Bxd2+ 15. Rxd2 {1-0 (76) Lu,S (2627)-Dreev,A (2652) Doha 2016}) 11. O-O {[%emt 0:00:16]} O-O {[%emt 0:04:26]} 12. b3 {[%emt 0:02:16]} Re8 {[%emt 0:13:24]} 13. f4 {[%emt 0:07:21]} Qc7 {[%emt 0:12:59]} 14. Bb2 {[%emt 0:03:42]} Rad8 {[%emt 0:04:36]} 15. Qf3 {[%emt 0:01:56]} Nb6 {[%emt 0:12:27]} 16. Kh2 {[%emt 0:07:36]} a5 {[%emt 0:02:42]} 17. a4 {[%emt 0:05:21]} Rd7 {[%emt 0:05:49]} 18. Rad1 {[%emt 0:06:25]} Nbd5 {[%emt 0:03:48]} 19. Na2 {[%emt 0:08:34]} Nb4 {[%emt 0:05:38]} 20. Nxb4 {[%emt 0:02:44]} axb4 {[%emt 0:00:32]} 21. Rfe1 {[%emt 0:02:00]} Nd5 {[%emt 0:03:15]} 22. Bf1 {[%emt 0:01:14]} Bf8 {[%emt 0:03:51]} 23. Bd3 {[%emt 0:01:30]} Rdd8 {[%emt 0:01:18]} 24. h4 {[%emt 0:08:54]} Nf6 {[%emt 0:01:36]} 25. f5 {[%emt 0:10:52]} exf5 {[%emt 0:00:47]} 26. Qxf5 {[%emt 0:00:08]} Bd6 {[%emt 0:01:27]} 27. Qf3 {[%emt 0:04:34]} h5 {[%emt 0:01:43]} 28. Kg2 {[%emt 0:00:37]} Qa5 {[%emt 0:04:29]} 29. Bc1 {[%emt 0:04:20]} Qd5 {[%emt 0:01:27]} 30. Rxe8+ {[%emt 0:04:10]} Rxe8 {[%emt 0:00:04]} 31. Bg5 {[%emt 0:00:21]} Qxf3+ {[%emt 0:01:32]} 32. Kxf3 {[%emt 0:00:02]} Nd5 {[%emt 0:00:15]} 33. a5 {[%emt 0:00:46]} Bc7 {[%emt 0:00:59]} 34. Ra1 {[%emt 0:01:10]} Ra8 {[%emt 0:00:41]} 35. a6 {[%emt 0:00:13]} bxa6 {[%emt 0:00:25]} 36. Rxa6 {[%emt 0:00:26]} Rxa6 {[%emt 0:00:56]} 37. Bxa6 {[%emt 0:00:01]} Bb6 {[%emt 0:00:23]} 38. Bb7 {[%emt 0:09:57]} f6 {[%emt 0:00:49]} 39. Bd2 {[%emt 0:01:31]} Bxd4 {[%emt 0:00:21]} 40. Bxc6 {[%emt 0:00:00]} Nc3 {[%emt 0:00:00]} 41. Be8 {[%emt 0:01:03]} Bc5 {[%emt 0:04:48]} 42. Bxh5 {[%emt 0:01:45]} Kf8 {[%emt 0:01:26]} 43. Bg6 {[%emt 0:03:19]} Ke7 {[%emt 0:03:06]} 44. Bd3 {[%emt 0:00:49]} Bd6 {[%emt 0:01:05]} 45. Be1 {[%emt 0:02:14]} Bc5 {[%emt 0:01:32]} 46. Kg4 {[%emt 0:02:21]} Bd4 {[%emt 0:05:56]} 47. Kf5 {[%emt 0:01:15]} Kf7 {[%emt 0:01:24]} 48. Bc4+ {[%emt 0:00:05]} Ke7 {[%emt 0:00:11]} 49. g4 {[%emt 0:05:34]} Be3 {[%emt 0:02:37]} 50. Bg3 {[%emt 0:07:17]} Bc5 $18 {[%emt 0:00:05]} 51. g5 {[%emt 0:02:34]} fxg5 {[%emt 0:07:07]} 52. hxg5 {[%emt 0:00:14]} Nd1 {[%emt 0:01:28]} 53. Be5 {[%emt 0:04:37]} Ne3+ {[%emt 0:01:50]} 54. Kg6 {[%emt 0:00:16]} Nxc4 {[%emt 0:00:25]} 55. bxc4 {[%emt 0:00:32]} 1-0

[Event "WYCC 2018 O18"]
[Site "Halkidiki"]
[Date "2018.10.20"]
[Round "1"]
[White "Burovic, Rijad"]
[Black "Bremner, William"]
[Result "1-0"]
[ECO "B12"]
[WhiteElo "2380"]
[BlackElo "2046"]
[Annotator "NA"]
[PlyCount "85"]
[EventDate "2018.10.20"]
[EventType "swiss"]
[EventCountry "GRE"]
[SourceTitle "playchess.com"]
[Source "ChessBase"]
[SourceQuality "1"]
[TimeControl "40/5400+30:1800+30"]

1. e4 {[%emt 0:00:00]} c6 {[%emt 0:00:00]} 2. d4 {[%emt 0:01:10]} d5 {[%emt 0:00:05]} 3. e5 {[%emt 0:00:38]} c5 {[%emt 0:00:30]} 4. dxc5 {[%emt 0:06:05]} e6 {[%emt 0:00:48]} 5. a3 {[%emt 0:01:44] B12: Caro-Kann: Advance Variation} Bxc5 {[%emt 0:01:01]} 6. Nf3 {[%emt 0:01:18]} Ne7 {[%emt 0:01:32]} (6... Nd7 7. Bd3 f6 8. b4 Be7 9. Bb2 fxe5 10. Nxe5 Nxe5 11. Bxe5 Bf6 12. O-O Nh6 13. Bxf6 Qxf6 {1-0 (70) Jakovenko,D (2735)-Fedoseev,V (2706) Poikovsky 2018}) 7. b4 {[%emt 0:14:24]} Bb6 {[%emt 0:00:55]} 8. Bb2 {[%emt 0:00:39] LiveBook: 10 Games} a5 {[%emt 0:03:32]} 9. b5 {[%emt 0:04:14]} Nd7 {[%emt 0:03:09]} 10. Nbd2 $146 {[%emt 0:03:53]} ({Predecessor:} 10. a4 Ng6 11. Bd3 Bc7 12. Bxg6 hxg6 {0-1 (43) Sprenger,J (2490)-Sedlak,N (2587) Biograd na Moru 2018}) 10... Ng6 {[%emt 0:24:45]} 11. c4 {[%emt 0:08:19]} Bc7 {[%emt 0:05:35]} 12. Qe2 {[%emt 0:02:50]} O-O {[%emt 0:03:06]} 13. g3 {[%emt 0:01:46]} f6 {[%emt 0:11:52]} 14. exf6 {[%emt 0:00:58]} Nxf6 {[%emt 0:00:18]} 15. Bg2 {[%emt 0:03:08]} Qd6 {[%emt 0:14:13]} 16. O-O {[%emt 0:05:08]} Bb6 $16 {[%emt 0:03:54]} 17. Ne5 {[%emt 0:11:42]} Nxe5 {[%emt 0:09:04]} 18. Bxe5 {[%emt 0:00:19]} Qc5 {[%emt 0:01:46]} 19. a4 {[%emt 0:04:51]} Bd7 {[%emt 0:04:04]} 20. Bb2 {[%emt 0:19:16]} Rf7 {[%emt 0:02:00]} 21. Ba3 {[%emt 0:00:49]} Qc7 {[%emt 0:01:09]} 22. Rac1 {[%emt 0:01:05]} Qd8 {[%emt 0:01:06]} 23. c5 {[%emt 0:01:50]} Bc7 {[%emt 0:00:25]} 24. Bb2 {[%emt 0:00:42]} Qe7 {[%emt 0:01:08]} 25. f4 {[%emt 0:03:49]} Re8 {[%emt 0:03:32]} 26. Be5 {[%emt 0:00:33]} Qd8 {[%emt 0:00:31]} 27. Nb3 {[%emt 0:00:29]} b6 {[%emt 0:00:46]} 28. Bxc7 {[%emt 0:01:07]} Qxc7 {[%emt 0:00:03]} 29. cxb6 {[%emt 0:00:34]} Qxb6+ {[%emt 0:00:49]} 30. Qf2 {[%emt 0:00:05]} Qd8 {[%emt 0:01:18]} 31. Qd4 {[%emt 0:00:30]} Qa8 {[%emt 0:00:53]} 32. Rc3 {[%emt 0:01:22]} Rc8 {[%emt 0:00:58]} 33. Rfc1 {[%emt 0:00:14]} Rxc3 {[%emt 0:00:44]} 34. Rxc3 {[%emt 0:00:26]} Bc8 {[%emt 0:00:44]} 35. Qb6 {[%emt 0:00:24]} Ne4 {[%emt 0:00:34]} 36. Rc7 {[%emt 0:00:51]} h6 {[%emt 0:00:33]} 37. Rxf7 {[%emt 0:00:39]} Kxf7 {[%emt 0:00:01]} 38. Nxa5 {[%emt 0:00:35]} Kg6 {[%emt 0:00:39]} 39. Qc7 {[%emt 0:00:14]} Kf6 {[%emt 0:00:50]} 40. Bf3 {[%emt 0:00:00]} Nd2 {[%emt 0:00:00]} 41. Qc3+ {[%emt 0:00:44]} Ke7 {[%emt 0:03:30]} 42. Qxd2 {[%emt 0:00:57]} Kd6 {[%emt 0:00:18]} 43. Qb4+ {[%emt 0:00:18]} 1-0

[Event "WYCC 2018 O18"]
[Site "Halkidiki"]
[Date "2018.10.20"]
[Round "1"]
[White "Miciano, John Marvin"]
[Black "Liang, Albert"]
[Result "1-0"]
[ECO "B40"]
[WhiteElo "2361"]
[BlackElo "2042"]
[Annotator "NA"]
[PlyCount "103"]
[EventDate "2018.10.20"]
[EventType "swiss"]
[EventCountry "GRE"]
[SourceTitle "playchess.com"]
[Source "ChessBase"]
[SourceQuality "1"]
[TimeControl "40/5400+30:1800+30"]

1. e4 {[%emt 0:00:00]} c5 {[%emt 0:00:00]} 2. Nf3 {[%emt 0:00:21]} e6 {[%emt 0:00:00]} 3. c3 {[%emt 0:00:40]} Nf6 {[%emt 0:00:51]} 4. e5 {[%emt 0:00:18]} Nd5 {[%emt 0:00:13]} 5. Bc4 {[%emt 0:01:08]} Nb6 {[%emt 0:04:17]} 6. Bb3 {[%emt 0:00:16]} c4 {[%emt 0:04:27]} 7. Bc2 {[%emt 0:00:08]} d6 {[%emt 0:03:05] B22: Sicilian: 2 c3} (7... Nc6 8. O-O d6 9. exd6 Qxd6 10. a4 Qc7 11. d3 cxd3 12. Qxd3 Nd5 13. Na3 a6 14. Re1 Be7 15. Nc4 {½-½ (69) Jones,G (2640)-Lagarde,M (2586) chess.com INT 2018}) 8. d4 {[%emt 0:04:30]} cxd3 {[%emt 0:01:38]} 9. Bxd3 {[%emt 0:02:06]} dxe5 $146 {[%emt 0:04:23]} ({Predecessor:} 9... Nc6 10. Bg5 Qc7 11. exd6 Bxd6 12. O-O h6 13. Bh4 Ne5 14. Nxe5 Bxe5 15. Bg3 Bxg3 16. fxg3 {½-½ (40) Johansen,S (1731)-Marfia,J (1995) IECG email 2000}) 10. Nxe5 {[%emt 0:00:36]} N8d7 {[%emt 0:01:04]} 11. Nf3 {[%emt 0:06:21]} Nc5 {[%emt 0:05:19]} 12. Bb5+ {[%emt 0:01:14]} Bd7 {[%emt 0:01:01]} 13. Bxd7+ {[%emt 0:01:39]} Qxd7 {[%emt 0:01:48]} 14. Qxd7+ {[%emt 0:02:07]} Ncxd7 {[%emt 0:03:37]} 15. Nbd2 {[%emt 0:01:02]} Nc5 {[%emt 0:10:13]} 16. Ke2 {[%emt 0:01:55]} Rd8 {[%emt 0:01:28]} 17. Nb3 {[%emt 0:01:49]} Nxb3 {[%emt 0:03:28]} 18. axb3 {[%emt 0:00:11]} a6 {[%emt 0:00:15]} 19. c4 {[%emt 0:01:36]} Be7 {[%emt 0:06:11]} 20. Bd2 {[%emt 0:05:46]} Rc8 {[%emt 0:05:02]} 21. Rhd1 {[%emt 0:02:22]} Nd7 {[%emt 0:09:42]} 22. Bc3 {[%emt 0:02:53]} Bf6 {[%emt 0:03:20]} 23. Nd2 {[%emt 0:00:45]} Bxc3 {[%emt 0:01:36]} 24. bxc3 {[%emt 0:00:07]} Ke7 {[%emt 0:00:12]} 25. b4 {[%emt 0:04:47]} Ra8 {[%emt 0:05:29]} 26. c5 {[%emt 0:03:49]} b6 {[%emt 0:03:26]} 27. cxb6 {[%emt 0:03:42]} Nxb6 {[%emt 0:00:20]} 28. c4 {[%emt 0:00:59]} Rhd8 {[%emt 0:05:18]} 29. Rdc1 {[%emt 0:00:51]} Rd4 {[%emt 0:06:04]} 30. g3 {[%emt 0:03:31]} Rc8 {[%emt 0:03:08]} 31. Rxa6 {[%emt 0:01:49]} Nxc4 {[%emt 0:01:15]} 32. Ra7+ {[%emt 0:00:58]} Kf6 {[%emt 0:01:01]} 33. Nb3 {[%emt 0:01:23]} Rdd8 {[%emt 0:00:59]} 34. Nc5 {[%emt 0:01:21]} Nd6 {[%emt 0:01:28]} 35. Rd1 $11 {[%emt 0:06:28]} Kg6 {[%emt 0:02:39]} 36. Nd3 {[%emt 0:07:54]} Nc4 {[%emt 0:00:49]} 37. b5 {[%emt 0:01:14]} e5 {[%emt 0:01:06]} 38. Rc1 {[%emt 0:04:13]} f6 {[%emt 0:00:33]} 39. Nb4 {[%emt 0:00:40]} Nd6 {[%emt 0:02:09]} 40. Rxc8 {[%emt 0:00:00]} Rxc8 {[%emt 0:00:00]} 41. b6 {[%emt 0:02:25]} Rb8 {[%emt 0:11:43]} 42. Nd5 {[%emt 0:00:15]} Nc8 {[%emt 0:05:03]} 43. Ra6 {[%emt 0:00:54]} Kf5 {[%emt 0:12:03]} 44. Ne3+ {[%emt 0:03:39]} Kg6 {[%emt 0:00:43]} 45. Nc4 {[%emt 0:00:07]} Kf7 {[%emt 0:00:41]} 46. Kd3 {[%emt 0:00:37]} Ke7 {[%emt 0:00:29]} 47. Kc3 {[%emt 0:00:53]} Kd7 {[%emt 0:00:52]} 48. Kb4 {[%emt 0:00:14]} Rb7 {[%emt 0:02:39]} 49. Kc5 {[%emt 0:00:20]} h5 {[%emt 0:00:36]} 50. Ra2 {[%emt 0:00:48]} Ne7 {[%emt 0:00:24]} 51. Ra7 {[%emt 0:00:32]} Kc8 {[%emt 0:00:17]} 52. Nd6+ {[%emt 0:00:10]} 1-0

[Event "WYCC 2018 O18"]
[Site "Halkidiki"]
[Date "2018.10.20"]
[Round "1"]
[White "Mitrabha, Guha"]
[Black "Gonzalez Carrillo, Javier Omar"]
[Result "1-0"]
[ECO "D35"]
[WhiteElo "2352"]
[BlackElo "2031"]
[Annotator "NA"]
[PlyCount "138"]
[EventDate "2018.10.20"]
[EventType "swiss"]
[EventCountry "GRE"]
[SourceTitle "playchess.com"]
[Source "ChessBase"]
[SourceQuality "1"]
[TimeControl "40/5400+30:1800+30"]

1. d4 {[%emt 0:00:00]} d5 {[%emt 0:00:00]} 2. c4 {[%emt 0:00:00]} e6 {[%emt 0:00:00]} 3. Nc3 {[%emt 0:00:00]} Nf6 {[%emt 0:00:04]} 4. cxd5 {[%emt 0:00:00]} exd5 {[%emt 0:00:07]} 5. Bg5 {[%emt 0:00:00]} Be7 {[%emt 0:01:14]} 6. e3 {[%emt 0:00:04]} Nbd7 {[%emt 0:01:38]} 7. Bd3 {[%emt 0:00:07]} c6 {[%emt 0:00:04]} 8. Qc2 {[%emt 0:00:03]} Nf8 {[%emt 0:00:32]} 9. Nf3 {[%emt 0:01:35]} Ne6 {[%emt 0:00:46]} 10. Bh4 {[%emt 0:00:05]} g6 {[%emt 0:00:17]} 11. O-O {[%emt 0:00:12]} O-O {[%emt 0:00:46]} 12. Rab1 {[%emt 0:01:00]} Ng7 {[%emt 0:15:58]} 13. b4 {[%emt 0:00:10]} a6 {[%emt 0:00:04]} 14. a4 {[%emt 0:00:05]} Bf5 {[%emt 0:00:04]} 15. b5 {[%emt 0:00:07] LiveBook: 23 Games} axb5 {[%emt 0:00:16] D36: Queen's Gambit Declined: Exchange Variation: Main line (5 Bg5 c6 6 Qc2)} 16. axb5 {[%emt 0:00:05]} Bxd3 {[%emt 0:24:32]} 17. Qxd3 {[%emt 0:00:02]} Ra3 $146 {[%emt 0:05:40]} ({Predecessor:} 17... Nf5 18. Bxf6 Bxf6 19. Ra1 (19. Rfc1 Ra3 20. bxc6 bxc6 {½-½ (32) Morley,P (2270)-Sage,F (2387) ICCF email 2009}) 19... Nd6 20. bxc6 bxc6 21. Ra6 Qc7 22. Rfa1 Qb7 23. Qe2 Rxa6 24. Qxa6 {½-½ (45) Tomashevsky,E (2713)-Sjugirov,S (2650) St Petersburg 2017}) 18. bxc6 {[%emt 0:00:30]} bxc6 {[%emt 0:04:41]} 19. Qc2 {[%emt 0:02:19]} Qa5 {[%emt 0:05:25]} 20. Rfc1 {[%emt 0:00:07]} Nf5 {[%emt 0:02:26]} 21. Bxf6 {[%emt 0:02:38]} Bxf6 {[%emt 0:00:03]} 22. Rb3 {[%emt 0:00:52]} Rxb3 {[%emt 0:06:02]} 23. Qxb3 {[%emt 0:06:58]} Nd6 {[%emt 0:00:01]} 24. Qa4 {[%emt 0:00:19]} Qxa4 {[%emt 0:04:18]} 25. Nxa4 {[%emt 0:00:36]} Nc4 {[%emt 0:03:40]} 26. Nc5 {[%emt 0:01:33]} Ra8 {[%emt 0:01:45]} 27. Nd3 {[%emt 0:00:37]} Kf8 {[%emt 0:02:47]} 28. g4 {[%emt 0:01:01]} Ke7 {[%emt 0:05:55]} 29. Rb1 {[%emt 0:01:47]} Ra7 $14 {[%emt 0:05:22]} 30. Rb8 {[%emt 0:00:29]} Kd6 {[%emt 0:01:21]} 31. Nc5 {[%emt 0:00:31]} Kc7 {[%emt 0:08:13]} 32. Re8 {[%emt 0:01:33]} Kb6 {[%emt 0:01:19]} 33. Kg2 {[%emt 0:00:56]} Be7 {[%emt 0:00:37]} 34. Nd3 {[%emt 0:00:09]} f6 {[%emt 0:00:12]} 35. Rb8+ {[%emt 0:01:51]} Rb7 {[%emt 0:00:21]} 36. Rh8 {[%emt 0:00:07]} Bd6 {[%emt 0:00:23]} 37. h4 {[%emt 0:00:29]} Ka7 {[%emt 0:00:47]} 38. g5 {[%emt 0:00:42]} f5 {[%emt 0:00:40]} 39. h5 {[%emt 0:02:22]} gxh5 {[%emt 0:00:34]} 40. Nfe5 {[%emt 0:00:00]} Kb6 {[%emt 0:00:00]} 41. Kg3 {[%emt 0:03:31]} Rg7 {[%emt 0:19:03]} 42. Kh4 {[%emt 0:00:31]} Be7 {[%emt 0:05:26]} 43. f4 {[%emt 0:00:12]} Nxe3 {[%emt 0:04:57]} 44. Kxh5 {[%emt 0:00:07]} Bd6 {[%emt 0:02:46]} 45. Kh6 {[%emt 0:00:35]} Rc7 {[%emt 0:00:49]} 46. Rxh7 {[%emt 0:00:23]} Nc2 {[%emt 0:00:32]} 47. Rxc7 {[%emt 0:00:59]} Kxc7 {[%emt 0:00:03]} 48. g6 {[%emt 0:04:47]} Bf8+ {[%emt 0:00:21]} 49. Kh7 {[%emt 0:00:05]} Nxd4 {[%emt 0:00:17]} 50. Kg8 {[%emt 0:00:05]} Ne6 {[%emt 0:01:04]} 51. Kf7 {[%emt 0:00:23]} Kd6 {[%emt 0:00:20]} 52. Nf3 {[%emt 0:00:08]} Bg7 {[%emt 0:00:57]} 53. Nh4 {[%emt 0:00:40]} Kd7 {[%emt 0:00:27]} 54. Nxf5 {[%emt 0:02:15]} Ba1 {[%emt 0:00:17]} 55. Ne3 {[%emt 0:02:28]} Nd8+ {[%emt 0:00:31]} 56. Kf8 {[%emt 0:00:13]} Ne6+ {[%emt 0:00:03]} 57. Kg8 {[%emt 0:00:03]} Ke7 {[%emt 0:01:09]} 58. f5 {[%emt 0:01:20]} Ng5 {[%emt 0:00:22]} 59. Ng4 {[%emt 0:00:23]} Bf6 {[%emt 0:00:38]} 60. g7 {[%emt 0:02:45]} Bxg7 {[%emt 0:00:27]} 61. Kxg7 {[%emt 0:00:06]} Ne4 {[%emt 0:00:14]} 62. Ngf2 {[%emt 0:01:58]} Nf6 {[%emt 0:00:26]} 63. Nf4 {[%emt 0:00:15]} Ne8+ {[%emt 0:00:12]} 64. Kg6 {[%emt 0:00:05]} d4 {[%emt 0:01:14]} 65. Ne4 {[%emt 0:00:15]} Kf8 {[%emt 0:00:30]} 66. Ne6+ {[%emt 0:00:06]} Ke7 {[%emt 0:00:03]} 67. Nxd4 {[%emt 0:01:00]} c5 {[%emt 0:00:04]} 68. Nc6+ {[%emt 0:00:23]} Kf8 {[%emt 0:01:16]} 69. Ng5 {[%emt 0:02:20]} Nd6 {[%emt 0:01:08]} 1-0

[Event "WYCC 2018 O18"]
[Site "Halkidiki"]
[Date "2018.10.20"]
[Round "1"]
[White "Ahmadzada, Ahmad"]
[Black "Bilic, Milanko"]
[Result "1-0"]
[ECO "B87"]
[WhiteElo "2343"]
[BlackElo "2009"]
[Annotator "NA"]
[PlyCount "73"]
[EventDate "2018.10.20"]
[EventType "swiss"]
[EventCountry "GRE"]
[SourceTitle "playchess.com"]
[Source "ChessBase"]
[SourceQuality "1"]
[TimeControl "40/5400+30:1800+30"]

1. e4 {[%emt 0:00:00]} c5 {[%emt 0:00:00]} 2. Nf3 {[%emt 0:00:00]} d6 {[%emt 0:00:02]} 3. d4 {[%emt 0:00:00]} cxd4 {[%emt 0:00:07]} 4. Nxd4 {[%emt 0:00:00]} Nf6 {[%emt 0:00:05]} 5. Nc3 {[%emt 0:00:00]} a6 {[%emt 0:00:21]} 6. Bc4 {[%emt 0:00:05]} e6 {[%emt 0:00:40]} 7. Bb3 {[%emt 0:00:06]} b5 {[%emt 0:01:52]} 8. O-O {[%emt 0:00:08]} Be7 {[%emt 0:00:09]} 9. Qf3 {[%emt 0:00:08]} Qc7 {[%emt 0:01:12]} 10. Qg3 {[%emt 0:00:09]} Nc6 {[%emt 0:08:43]} 11. Nxc6 {[%emt 0:06:00]} Qxc6 {[%emt 0:00:27]} 12. Re1 {[%emt 0:00:06] B87: Sicilian Scheveningen/Najdorf: 6 Bc4, with early ...b5} Qc7 {[%emt 0:21:59]} (12... Bb7 13. a3 Rd8 14. Be3 O-O 15. Rad1 Kh8 16. Bg5 a5 17. Qh4 h6 18. Rd3 Qc5 19. Bxh6 Qh5 20. Qxh5 Nxh5 21. Bd2 b4 22. axb4 axb4 {1-0 (45) Kasimdzhanov,R (2703)-Amonatov,F (2614) Almaty 2016}) 13. Qxg7 $146 {[%emt 0:10:40]} ({Predecessor:} 13. a4 b4 14. Na2 Qb7 15. f3 O-O 16. Bh6 Ne8 17. Bg5 Bxg5 18. Qxg5 a5 19. Rad1 Bd7 {½-½ (31) Mirumian,V (2425)-Mozny,M (2405) Czechia 1997}) 13... Rg8 {[%emt 0:00:18]} 14. Qh6 {[%emt 0:00:08]} Rg6 {[%emt 0:00:21]} 15. Qh3 {[%emt 0:04:51]} Bb7 {[%emt 0:08:46]} 16. f3 {[%emt 0:02:28]} O-O-O {[%emt 0:04:50]} 17. Be3 {[%emt 0:07:28]} Rdg8 {[%emt 0:02:24]} 18. Re2 {[%emt 0:01:21]} h5 {[%emt 0:07:39]} 19. Nd5 {[%emt 0:05:36]} Nxd5 {[%emt 0:06:29]} 20. exd5 {[%emt 0:00:09]} Qd7 {[%emt 0:03:23]} 21. dxe6 {[%emt 0:02:20]} fxe6 {[%emt 0:00:01]} 22. Bd4 {[%emt 0:00:44]} e5 {[%emt 0:04:25]} 23. Qxd7+ {[%emt 0:03:43]} Kxd7 {[%emt 0:00:15]} 24. Bxg8 {[%emt 0:00:22]} Rxg8 $16 {[%emt 0:02:00]} 25. Be3 {[%emt 0:01:24]} Bxf3 {[%emt 0:00:56]} 26. Rf2 {[%emt 0:00:12]} Bg4 {[%emt 0:02:48]} 27. c3 {[%emt 0:02:32]} Ke6 {[%emt 0:02:19]} 28. Raf1 {[%emt 0:03:38]} h4 {[%emt 0:02:43]} 29. Kh1 {[%emt 0:15:12]} h3 {[%emt 0:04:16]} 30. gxh3 {[%emt 0:00:52]} Bxh3 {[%emt 0:04:59]} 31. Rg1 {[%emt 0:00:19]} Rh8 {[%emt 0:02:41]} 32. Bg5 {[%emt 0:01:49]} Bxg5 {[%emt 0:04:33]} 33. Rxg5 {[%emt 0:00:14]} e4 {[%emt 0:00:54]} 34. Rf4 {[%emt 0:00:51]} d5 {[%emt 0:00:12]} 35. Kg1 {[%emt 0:00:31]} Kd6 {[%emt 0:00:20]} 36. Kf2 {[%emt 0:00:34]} Kc5 {[%emt 0:00:08]} 37. Rxe4 {[%emt 0:00:55]} 1-0